[Event "8th Montevideo Open 2025"]
[Site "Montevideo"]
[Date "2025.02.07"]
[Round "7.1"]
[White "Coro, Lucas"]
[Black "Coppola, Claudio"]
[Result "1-0"]
[Annotator "TA"]
[ECO "C78"]
[WhiteElo "2415"]
[BlackElo "2220"]
[PlyCount "65"]
[EventDate "2025.02.01"]
[EventType "swiss"]
[EventCountry "URU"]
[SourceTitle "playchess.com"]
[Source "ChessBase"]
[SourceQuality "1"]
[TimeControl "5400+30"]

{[%evp 12,65,44,43,49,32,25,19,33,26,30,18,20,1,0,0,0,0,0,0,0,0,22,22,93,81,95,77,120,113,143,84,105,76,166,170,167,174,182,159,321,323,320,201,180,173,172,146,195,197,196,178,355,347,733,700]} 1. e4 {[%emt 0:07:09]} e5 {[%emt 0:00:04]} 2. Nf3 {[%emt 0:00:12]} Nc6 {[%emt 0:00:04]} 3. Bb5 {[%emt 0:01:00]} a6 {[%emt 0:00:08]} 4. Ba4 {[%emt 0:00:08]} Nf6 {[%emt 0:00:07]} 5. O-O {[%emt 0:00:26]} b5 {[%emt 0:00:04]} 6. Bb3 {[%emt 0:00:06]} Bc5 {[%emt 0:00:14] is now debated instead of 6...Be7.} 7. a4 {[%emt 0:01:15]} Rb8 {[%emt 0:01:39] C78: Ruy Lopez: Archangelsk and Möller Defences.} 8. Nxe5 {[%emt 0:09:06]} Nxe5 {[%emt 0:00:19]} 9. d4 {[%emt 0:00:07]} Bxd4 {[%emt 0:01:29] The position is equal.} 10. Qxd4 {[%emt 0:00:09]} d6 {[%emt 0:00:24]} 11. axb5 {[%emt 0:01:20]} axb5 {[%emt 0:00:37]} 12. f3 {[%emt 0:04:44]} c5 {[%emt 0:13:32][%cal Bc7c5,Bc5c4][%mdl 32]} 13. Qf2 {[%emt 0:01:03]} c4 $146 {[%emt 0:02:24]} (13... O-O 14. Bg5 h6 15. Bh4 Be6 16. Nc3 c4 17. Ba2 b4 18. Ne2 Ra8 19. Nd4 g5 {0-1 Bernadskiy,V (2572)-Kalogeris,I (2429) Prague op 2024 (6)}) 14. Ba2 {[%emt 0:00:06]} b4 {[%emt 0:09:01]} 15. f4 {[%emt 0:27:48]} Neg4 {[%emt 0:23:27]} (15... Nxe4 16. Qe3 Qb6 17. Qxb6 (17. fxe5 b3 $16) 17... Rxb6 18. Re1 $14 (18. fxe5 b3 $16)) 16. Qd4 {[%emt 0:02:35]} O-O {[%emt 0:00:44][%cal Bh8f8,Bf8e8,Be8e7][%mdl 32]} 17. Bxc4 {[%emt 0:05:56]} (17. Qxc4 $2 Qb6+ 18. Kh1 d5 $19 (18... Ba6 19. Qxa6 Qxa6 20. Bxf7+ Rxf7 21. Rxa6 $11)) 17... Bb7 {[%emt 0:07:34] Black sacrificed a pawn} (17... Nxe4 $11 {remains equal.} 18. Qxe4 Qb6+ 19. Kh1 Nf2+ 20. Rxf2 Qxf2) 18. Nd2 {[%emt 0:07:40] White is more active.} (18. h3 {seems wilder.} Nxe4 19. hxg4 Qh4 20. Nd2) 18... d5 {[%emt 0:02:26]} 19. exd5 {[%emt 0:00:15]} (19. Be2 {simplifies} dxe4 20. Qxd8 Rfxd8 21. Nc4) 19... Nxd5 {[%emt 0:00:18]} 20. Nf3 {[%emt 0:06:06]} Nb6 {[%emt 0:10:56] [#] aiming for ...Qxd4+.} 21. Bb3 {[%emt 0:00:38]} (21. Bd3 $142 $1) 21... Re8 {[%emt 0:03:07]} 22. h3 {[%emt 0:06:50]} (22. Qxb4 Bxf3 23. gxf3 (23. Rxf3 Qh4 $15) 23... Nxh2 24. Bxf7+ (24. Kxh2 Qh4+ 25. Kg1 Re2 26. Bxf7+ Kh8) 24... Kxf7 25. Ra7+ Kg8 $15) 22... Bxf3 {[%emt 0:02:34]} (22... Qxd4+ $16 23. Nxd4 Nf6) 23. Qxd8 $18 {[%emt 0:00:05]} (23. Qxb4 Be2 24. hxg4 Bxf1 25. Kxf1 Qd1+ 26. Kf2 Re2+ (26... Qxg4 $2 27. Qb5 $19) 27. Kg3 Rc8 $19) 23... Rbxd8 {[%emt 0:00:43]} 24. gxf3 {[%emt 0:00:29]} (24. Rxf3 Re1+ 25. Rf1 Rdd1 $11) 24... Nh6 {[%emt 0:04:24]} 25. Kf2 {[%emt 0:00:38]} Re7 $2 {[%emt 0:07:08] A mistake that costs the game.} (25... Nf5 $16 26. Ra6 Nc8) 26. Be3 {[%emt 0:02:34]} Nd7 {[%emt 0:01:05]} 27. Rfe1 {[%emt 0:02:04]} Nf5 {[%emt 0:04:15]} 28. Ra5 {[%emt 0:02:39]} g6 {[%emt 0:00:38]} 29. Bd2 {[%emt 0:00:12][%cal Oa5f5] [#] Rxf5! is the strong threat. A strong pair of Bishops.} Rxe1 {[%emt 0:00:19]} (29... Nc5 $16 30. Bxb4 Nxb3 31. Rxe7 (31. Bxe7 $2 {too greedy.} Rd2+ 32. Kf1 Nxa5 $19) (31. cxb3 Rb7 $16) 31... Nxa5 32. Bxa5 Ra8 (32... Rb8 $2 33. Rd7 $18)) 30. Bxe1 {[%emt 0:00:06]} Nd4 {[%emt 0:01:27]} 31. Rd5 {[%emt 0:01:21]} Nc6 {[%emt 0:02:34]} (31... Nxb3 {is a better defense.} 32. cxb3 Kf8 33. Bxb4+ Ke8) 32. Rd6 {[%emt 0:01:00]} Na5 {[%emt 0:00:26]} (32... Ndb8 33. Rxd8+ Nxd8 34. Bxb4 Nbc6) 33. Ba4 {[%emt 0:00:26] Weighted Error Value: White=0.16 (very precise) /Black=0.46  Loses game:     	---       	Black=1      Mistake:       	White=1     	Black=5      Inaccurate:     	White=1     	Black=1      OK:         	White=8     	Black=9      Best:        	White=2     	Black=1} (33. Bxb4 Nxb3 34. cxb3 Rb8 $18) 1-0

[Event "8th Montevideo Open 2025"]
[Site "Montevideo"]
[Date "2025.02.07"]
[Round "7.2"]
[White "Vazquez, Facundo"]
[Black "Larrea, Manuel"]
[Result "1/2-1/2"]
[Annotator "TA"]
[ECO "E94"]
[WhiteElo "2404"]
[BlackElo "2265"]
[PlyCount "87"]
[EventDate "2025.02.01"]
[EventType "swiss"]
[EventCountry "URU"]
[SourceTitle "playchess.com"]
[Source "ChessBase"]
[SourceQuality "1"]
[TimeControl "5400+30"]

{[%evp 24,87,39,44,50,37,62,7,14,7,13,0,34,41,48,64,61,63,61,59,64,35,40,40,40,37,60,62,58,55,95,93,76,76,85,20,33,24,21,3,131,122,139,136,141,143,424,440,429,413,361,167,244,0,0,0,0,0,0,0,0,-28,-28,-28,-29,-29]} 1. d4 {[%emt 0:00:04]} Nf6 {[%emt 0:04:24]} 2. c4 {[%emt 0:00:23]} g6 {[%emt 0:00:40]} 3. Nc3 {[%emt 0:00:08]} Bg7 {[%emt 0:00:10]} 4. e4 {[%emt 0:00:07]} d6 {[%emt 0:00:11]} 5. Be2 {[%emt 0:00:08]} O-O {[%emt 0:00:12]} 6. Bg5 {[%emt 0:00:06]} Na6 {[%emt 0:01:38]} 7. Nf3 {[%emt 0:00:09]} h6 {[%emt 0:05:23]} 8. Be3 {[%emt 0:00:09]} Ng4 {[%emt 0:00:17]} 9. Bc1 {[%emt 0:00:40]} e5 {[%emt 0:01:41]} 10. O-O {[%emt 0:00:21]} Qe8 {[%emt 0:07:13]} 11. h3 {[%emt 0:08:31]} Nf6 {[%emt 0:01:07]} 12. dxe5 {[%emt 0:07:48]} dxe5 {[%emt 0:03:53]} 13. Be3 {[%emt 0:00:03]} b6 {[%emt 0:04:13]} 14. Qb1 {[%emt 0:05:51]} Bb7 {[%emt 0:02:45]} 15. a4 {[%emt 0:07:30]} (15. b4 $14) 15... Nc5 $11 {[%emt 0:15:01] The position is equal.} 16. Bxc5 {[%emt 0:05:45]} bxc5 {[%emt 0:02:11]} 17. Nd5 {[%emt 0:00:18]} Nxd5 {[%emt 0:08:02]} 18. cxd5 {[%emt 0:00:35]} c6 {[%emt 0:00:11]} 19. d6 {[%emt 0:01:19]} Qe6 {[%emt 0:00:56]} 20. Rd1 {[%emt 0:01:15]} Rfd8 {[%emt 0:03:18]} 21. Qc2 {[%emt 0:05:41]} Rxd6 {[%emt 0:03:32]} 22. Bc4 {[%emt 0:01:18]} Rxd1+ $1 {[%emt 0:01:42]} 23. Rxd1 {[%emt 0:00:02]} Qe7 {[%emt 0:00:36]} 24. Qd3 {[%emt 0:09:42] Black is weak on the light squares} Bf6 {[%emt 0:03:51]} 25. Qd7 {[%emt 0:01:14] Hoping for Qxe7.} Kf8 {[%emt 0:05:43]} 26. a5 $36 {[%emt 0:01:22][%mdl 2048] White fights for an advantage.} Bc8 {[%emt 0:08:16]} 27. Qxc6 {[%emt 0:07:59] White is much more active.} Bb7 {[%emt 0:00:29]} 28. Qb5 {[%emt 0:02:13] And now Rd7 would win.} a6 {[%emt 0:00:10] [#]} 29. Qb6 {[%emt 0:00:57]} (29. Qa4 $1 $16 {Black must now prevent Rd7.} Bc8 30. Qb3) 29... Bxe4 {[%emt 0:01:50]} 30. Bxa6 {[%emt 0:00:46]} Kg7 {[%emt 0:06:22]} 31. Bb5 {[%emt 0:11:56]} Ra7 {[%emt 0:03:38] Prevents Rd7.} (31... Qb7 $11 {keeps the balance.}) 32. a6 $16 {[%emt 0:01:52]} Ba8 {[%emt 0:02:02]} 33. Nd2 {[%emt 0:04:40]} e4 {[%emt 0:02:45][%cal Oe4e3] ...e3! is the strong threat.} 34. Nc4 {[%emt 0:00:33]} Bd4 $2 {[%emt 0:00:32][%mdl 8192] [#]} (34... e3 $16 {was worth a try.} 35. Nxe3 (35. fxe3 Bxb2 36. Rd6 Bc3 $16) 35... Be5) 35. Rxd4 $3 $18 {[%emt 0:02:23][%mdl 512]} cxd4 {[%emt 0:00:01]} 36. Qxd4+ {[%emt 0:00:08]} Kh7 {[%emt 0:00:19]} 37. Nb6 {[%emt 0:01:29]} (37. Nd6 $142 Rc7 38. Ne8 Rc1+ 39. Kh2) 37... Qc7 {[%emt 0:01:56]} (37... Qg5 $142 38. Nxa8 Rxa8 39. Qxe4 Qc1+ 40. Kh2 Qc7+ 41. g3 Rd8) 38. Nd7 $2 {[%emt 0:01:26]} (38. b4 $18) 38... Qc1+ $11 {[%emt 0:01:28]} 39. Bf1 {[%emt 0:01:25] Intending Nf6+ and mate. Some like it hot} Rxa6 {[%emt 0:00:40]} 40. Nf6+ {[%emt 0:00:41]} Rxf6 $1 {[%emt 0:00:24]} 41. Qxf6 {[%emt 0:00:02]} Bd5 {[%emt 0:00:22]} 42. Qc3 {[%emt 0:01:46] Prevents Bc4} Qxc3 {[%emt 0:00:22]} 43. bxc3 {[%emt 0:00:01]} f5 {[%emt 0:00:06]} 44. Bb5 {[%emt 0:00:34] Weighted Error Value: White=0.33/Black=0.29 (precise) .  Loses game:     	---       	Black=1      Missed win:     	White=1     	---        Mistake:       	White=3     	Black=2      Inaccurate:     	White=2     	Black=2      OK:         	White=8     	Black=12     Best:        	White=1     	Black=4      Strong:       	---       	Black=2      Brilliant:      	White=1     	---} 1/2-1/2

[Event "8th Montevideo Open 2025"]
[Site "Montevideo"]
[Date "2025.02.07"]
[Round "7.3"]
[White "Villegas, Franco"]
[Black "Mussanti, Diego"]
[Result "1-0"]
[Annotator "TA"]
[ECO "B69"]
[WhiteElo "2325"]
[BlackElo "2173"]
[PlyCount "99"]
[EventDate "2025.02.01"]
[EventType "swiss"]
[EventCountry "URU"]
[SourceTitle "playchess.com"]
[Source "ChessBase"]
[SourceQuality "1"]
[TimeControl "5400+30"]

{[%evp 22,99,47,17,18,4,25,20,37,-22,-18,-12,29,33,41,25,26,0,0,0,0,0,0,0,0,0,4,-18,-25,0,5,-10,37,-60,-45,-57,-50,-68,-12,-141,-150,-131,0,-6,37,0,0,0,168,176,216,218,227,217,440,378,325,259,287,192,691,639,2985,2821,5701,5489,1647,652,652,652,652,-115,645,645,939,645,645,645,2754,2552]} 1. e4 {[%emt 0:06:19]} c5 {[%emt 0:00:27]} 2. Nf3 {[%emt 0:00:13]} d6 {[%emt 0:00:12]} 3. d4 {[%emt 0:00:14]} cxd4 {[%emt 0:00:09]} 4. Nxd4 {[%emt 0:00:17]} Nf6 {[%emt 0:00:15]} 5. Nc3 {[%emt 0:00:18]} Nc6 {[%emt 0:00:18]} 6. Bg5 {[%emt 0:00:22]} e6 {[%emt 0:00:28]} 7. Qd2 {[%emt 0:00:22]} Be7 {[%emt 0:00:23]} 8. O-O-O {[%emt 0:00:30]} a6 {[%emt 0:00:15]} 9. f4 {[%emt 0:00:28][%cal Bf2f4,Bf4f5][%mdl 32]} Bd7 {[%emt 0:00:26]} 10. Nf3 {[%emt 0:00:28]} b5 {[%emt 0:00:18]} 11. Bxf6 {[%emt 0:01:40]} gxf6 {[%emt 0:00:18]} 12. Bd3 {[%emt 0:00:24]} Qb6 {[%emt 0:15:04] B69: Sicilian: Richter-Rauzer: 7...a6 8 0-0-0 Bd7 9 f4 Be7 10 Nf3 b5 11 Bxf6.} 13. f5 {[%emt 0:03:00]} O-O-O {[%emt 0:01:12]} 14. Ne2 {[%emt 0:00:56]} Ne5 {[%emt 0:03:38] The position is equal.} 15. Nfd4 $146 {[%emt 0:02:44]} (15. Kb1 $14) (15. Nf4 Kb8 16. Rhf1 Rhe8 17. Kb1 Rc8 18. Be2 Nc4 19. Bxc4 Rxc4 20. Rfe1 Rec8 21. fxe6 fxe6 {1-0 Flores Quillas,D (2359)-Korchmar,V (2438) Titled Tuesday intern op 7th Mar Late blitz 2023 (4)}) 15... Kb8 $11 {[%emt 0:03:04]} 16. c3 {[%emt 0:01:48]} Nxd3+ {[%emt 0:01:28]} (16... b4 17. Kb1 Rdg8 18. g3 bxc3 19. Qxc3 Rc8) 17. Qxd3 {[%emt 0:00:06]} Rhe8 {[%emt 0:38:31]} 18. Rhf1 {[%emt 0:14:43]} Qb7 {[%emt 0:02:37]} 19. Kb1 {[%emt 0:04:32]} e5 {[%emt 0:03:03]} 20. Nb3 {[%emt 0:00:55][%cal Bd4b3,Bb3d2,Bd2c4][%mdl 32]} Bc6 {[%emt 0:00:50]} 21. Ng3 {[%emt 0:00:05]} Qb6 {[%emt 0:01:37] Repels Na5} 22. Qf3 $1 {[%emt 0:02:43]} a5 {[%emt 0:03:00][%cal Ba6a5,Ba5a4][%mdl 32]} 23. Rd3 {[%emt 0:02:12]} a4 {[%emt 0:02:30]} 24. Nd2 {[%emt 0:00:05]} (24. Na1 $5) 24... Qb7 {[%emt 0:01:18]} 25. c4 {[%emt 0:05:43]} Bf8 {[%emt 0:03:43]} 26. Qe3 {[%emt 0:05:05]} Qa7 {[%emt 0:01:27]} (26... Rc8 $11 27. Rd1 Ka8) 27. Qe2 {[%emt 0:00:45]} (27. Qxa7+ $1 $14 Kxa7 28. Rc1) 27... bxc4 $15 {[%emt 0:04:52]} 28. Nxc4 {[%emt 0:00:41]} Bb5 $1 {[%emt 0:01:48]} (28... d5 29. exd5 e4 30. Nxe4 Bxd5 31. Qc2 $17) 29. Rc1 {[%emt 0:04:59]} Qa6 {[%emt 0:01:29]} (29... Rc8 $15 30. Rdc3 Qa6) 30. Rd5 {[%emt 0:03:40]} (30. b3 $1 $11 {keeps the balance.}) 30... Rc8 $17 {[%emt 0:00:46]} 31. b3 {[%emt 0:00:04][%cal Bb2b3,Bb3c4,Bc4b5,Bb5b6][%mdl 32]} Rc6 {[%emt 0:00:39]} (31... Re7 $17 {...axb3 would now be deadly.} 32. Qe3 (32. Rxd6 $2 Qxd6 33. Nxd6 Rxc1+ 34. Kxc1 Bxe2 $19) 32... axb3 33. axb3 Rb7) 32. Qd2 $11 {[%emt 0:10:20]} Bxc4 {[%emt 0:03:07]} (32... Rec8 {simplifies} 33. Qb4 Rc5 34. bxa4 Qxa4 35. Qxa4 Bxa4 36. Rxc5 Rxc5 37. Ne3 Rb5+) 33. Rxc4 {[%emt 0:00:06]} (33. Qb4+ {is interesting.} Rb6 34. Qxc4 axb3 35. a4) 33... Rxc4 {[%emt 0:00:25]} 34. bxc4 {[%emt 0:00:04]} Kc7 $2 {[%emt 0:03:38] Black is weak on the light squares} (34... Qxc4 $11 {and Black stays safe.} 35. Qa5 Re7 36. Rb5+ (36. Rxd6 Rb7+ 37. Rb6 Qd3+ 38. Ka1 Qd4+ 39. Kb1 Rxb6+) (36. Qd8+ Kb7 $17) 36... Qxb5+ 37. Qxb5+ Rb7 38. Qxb7+ Kxb7) 35. Rb5 $36 {[%emt 0:00:22][%mdl 2048] White is in control.} Rb8 {[%emt 0:01:59] [#]} 36. Qd5 {[%emt 0:00:11]} Rxb5+ {[%emt 0:01:20]} 37. cxb5 {[%emt 0:00:05][%mdl 4096] Endgame KQB-KQN} Qa5 {[%emt 0:00:25]} (37... Qc8 38. Qc4+ (38. Qxf7+ Kb6 $14) 38... Kb8 39. Qxc8+ (39. Qxf7 Bh6 $16) (39. Qxa4 Qc5 $16) 39... Kxc8) 38. Kc2 {[%emt 0:01:35]} Be7 {[%emt 0:01:29]} 39. Qc6+ {[%emt 0:00:34]} Kd8 {[%emt 0:00:07]} 40. Kd1 {[%emt 0:01:31]} Qb4 $2 {[%emt 0:00:34] [#]} (40... Qc7) 41. b6 $1 {[%emt 0:00:35] b7 is the strong threat.} Qb1+ {[%emt 0:01:14]} 42. Ke2 {[%emt 0:00:31]} Qxa2+ {[%emt 0:00:17]} 43. Kf3 {[%emt 0:00:05]} Qb3+ {[%emt 0:00:05]} 44. Kf2 {[%emt 0:00:27]} (44. Kg4 $142 Qd1+ 45. Kh4) 44... d5 {[%emt 0:00:54]} 45. Qc7+ {[%emt 0:02:02]} (45. Qxd5+ $2 {perishes.} Qxd5 46. exd5 a3 $19 (46... Bc5+ $2 47. Ke2 $19)) (45. exd5 Qb4 46. Qc7+ Ke8 $16) 45... Ke8 {[%emt 0:00:06]} 46. Qc8+ {[%emt 0:00:03]} Bd8 {[%emt 0:00:08] This costs Black the game.} 47. b7 {[%emt 0:00:03] White is clearly winning.} Qb2+ {[%emt 0:00:45]} 48. Kf3 {[%emt 0:03:16]} Qb3+ {[%emt 0:00:58]} 49. Kg4 {[%emt 0:00:48]} Qe3 {[%emt 0:00:07]} 50. h4 {[%emt 0:00:16] Weighted Error Value: White=0.51/Black=0.83  Loses game:     	---       	Black=1      Mistake:       	White=3     	Black=5      Inaccurate:     	White=3     	Black=4      OK:         	White=10    	Black=10     Best:        	---       	Black=1      Strong:       	White=2     	Black=1} (50. b8=B h5+ 51. Nxh5 (51. Kxh5 $2 Qg5#) 51... Qg5+ (51... dxe4 52. Qc6+ Kf8 53. Bd6+ Kg8 54. Qe8+ Kh7 55. Qxf7+ Kh8 56. Qg7#) 52. Kh3 Qxh5+ 53. Kg3 Qg5+ (53... dxe4 54. Qc6+ Kf8 55. Bd6+ Kg7 56. Qxe4 $17) 54. Kh3 Qh6+ (54... dxe4 55. Qc6+ Kf8 56. Bd6+ Kg7 57. Qxe4 $17) 55. Kg4 Qd2 $19 (55... dxe4 $2 56. Qc6+ Kf8 57. Bd6+ Kg7 58. Qxe4 $19) (55... Qxh2 $2 56. Qc2 $19)) ({And not} 50. b8=R Qf4+ 51. Kh3 Qh6+ $11) 1-0

[Event "8th Montevideo Open 2025"]
[Site "Montevideo"]
[Date "2025.02.07"]
[Round "7.4"]
[White "Shoker, Samy"]
[Black "De Lima, Adriano Gaspar"]
[Result "1-0"]
[Annotator "TA"]
[ECO "A05"]
[WhiteElo "2446"]
[BlackElo "2073"]
[PlyCount "85"]
[EventDate "2025.02.01"]
[EventType "swiss"]
[EventCountry "URU"]
[SourceTitle "playchess.com"]
[Source "ChessBase"]
[SourceQuality "1"]
[TimeControl "5400+30"]

{[%evp 12,85,0,0,0,0,-2,0,11,0,32,29,40,37,35,10,83,0,0,0,1,0,0,0,29,44,49,50,41,29,60,-5,68,81,79,65,88,81,64,76,71,43,110,122,121,116,181,190,201,181,258,209,241,228,232,183,207,198,277,157,165,173,553,535,529,530,1022,983,5418,5181,7664,5517,29993,29994,29994,29995]} 1. Nf3 {[%emt 0:00:03]} Nf6 {[%emt 0:01:55]} 2. g3 {[%emt 0:00:04]} g6 {[%emt 0:01:19]} 3. Bg2 {[%emt 0:00:03]} Bg7 {[%emt 0:01:35]} 4. O-O {[%emt 0:00:11]} O-O {[%emt 0:01:05]} 5. d3 {[%emt 0:00:10]} d6 {[%emt 0:00:23]} 6. c3 {[%emt 0:00:11]} e5 {[%emt 0:04:59]} 7. e4 {[%emt 0:00:20]} c5 {[%emt 0:00:41]} 8. a3 {[%emt 0:00:03]} Nc6 {[%emt 0:02:01]} 9. b4 {[%emt 0:00:09]} b6 {[%emt 0:01:26] The position is equal.} 10. Nbd2 {[%emt 0:00:49]} h6 {[%emt 0:03:51]} 11. Bb2 {[%emt 0:00:27]} Be6 {[%emt 0:02:49]} 12. b5 {[%emt 0:06:30]} Ne7 {[%emt 0:02:01]} 13. d4 {[%emt 0:01:04]} Nd7 {[%emt 0:03:37] [#]} (13... a6 $11) 14. h3 {[%emt 0:02:15]} (14. d5 $1 $16 {[%cal Rd5e6]} Bg4 15. h3 Bxf3 16. Qxf3 (16. Bxf3 f5 $14)) 14... exd4 $11 {[%emt 0:09:34]} 15. cxd4 {[%emt 0:00:06]} d5 {[%emt 0:00:11]} 16. Re1 {[%emt 0:05:01]} dxe4 {[%emt 0:06:33]} 17. Nxe4 {[%emt 0:00:07]} Rc8 {[%emt 0:10:23]} 18. Qe2 {[%emt 0:08:49] dxc5 is the strong threat.} Nf5 {[%emt 0:05:57]} 19. dxc5 {[%emt 0:06:23]} Nxc5 {[%emt 0:00:35]} 20. Rad1 {[%emt 0:23:29]} Qe7 {[%emt 0:05:39]} 21. Nxc5 {[%emt 0:03:22]} (21. Bxg7 $14 Nxg7 22. a4) 21... Qxc5 {[%emt 0:00:45]} (21... Rxc5 $11 22. Bxg7 Kxg7) 22. g4 $14 {[%emt 0:02:19]} Bc4 {[%emt 0:04:53]} 23. Qd2 {[%emt 0:00:29]} Bxb2 {[%emt 0:00:43]} 24. Qxb2 {[%emt 0:01:09] [#] aiming for Re5.} Ng7 {[%emt 0:00:37][%cal Of8e8]} 25. a4 $36 {[%emt 0:14:49][%mdl 2048] White is in control.} Be6 {[%emt 0:12:00] Wards off Rd7} 26. Ne5 {[%emt 0:00:39] White is more active.} Rcd8 {[%emt 0:02:29] White stays focused until the end.} ({Black should play} 26... Qc3 $14 27. Qb1 Rfd8) 27. Nc6 $16 {[%emt 0:02:35]} Rxd1 {[%emt 0:00:08]} 28. Rxd1 {[%emt 0:00:04][%cal Be1d1,Bd1d4,Bd4b4][%mdl 32]} Qc4 {[%emt 0:00:38]} (28... Re8 $16) 29. Rd4 {[%emt 0:01:06]} (29. Nxa7 $6 Qxa4 30. Ra1 Qc4 $14) 29... Qb3 {[%emt 0:03:53]} 30. Qd2 {[%emt 0:00:30]} (30. Qxb3 Bxb3 31. Bd5 (31. Nxa7 Ne6 $16) 31... Bxd5 32. Rxd5 Ne6 $16) 30... h5 {[%emt 0:00:30]} (30... Kh7 $142 31. Nxa7 h5) 31. Nxa7 {[%emt 0:00:30]} Kh7 {[%emt 0:00:30]} 32. Nc6 {[%emt 0:04:10]} Ra8 {[%emt 0:12:50]} 33. Rb4 {[%emt 0:01:51]} Qa3 {[%emt 0:00:00]} 34. Qd4 {[%emt 0:00:46]} Qc1+ {[%emt 0:00:00]} (34... hxg4 {was necessary.} 35. hxg4 (35. Qxb6 gxh3 36. Rh4+ Nh5 $11) 35... f5 36. gxf5 (36. Qxb6 Rxa4 37. Qe3 Qa1+ 38. Kh2 Rxb4 $18) 36... Qc1+ 37. Bf1 Qg5+ 38. Qg4 Qxg4+ 39. Rxg4 Nxf5) 35. Bf1 {[%emt 0:02:48]} (35. Kh2 $18) 35... hxg4 {[%emt 0:00:00]} 36. hxg4 {[%emt 0:00:07]} f5 $2 {[%emt 0:00:00]} (36... Qh6 37. Qf6 (37. Qxb6 Bd5 $11) 37... Rh8) 37. Qxb6 $18 {[%emt 0:01:20]} fxg4 {[%emt 0:00:43]} 38. Qe3 {[%emt 0:00:04]} Qa1 {[%emt 0:01:16]} 39. b6 {[%emt 0:00:52]} Bc8 {[%emt 0:00:51]} 40. b7 {[%emt 0:00:19]} Bxb7 {[%emt 0:00:06]} 41. Rxb7 {[%emt 0:00:06] White threatens Qg5 and mate.} Qxa4 {[%emt 0:00:13]} 42. Qe7 {[%emt 0:00:23][%csl Gb7][%cal Re7g7]} Qa1 {[%emt 0:00:51]} 43. Ne5 {[%emt 0:00:19] Weighted Error Value: White=0.18 (very precise) /Black=0.49.  Mistake:       	White=3     	Black=7      Inaccurate:     	White=1     	Black=4      OK:         	White=15    	Black=8      Best:        	White=1     	Black=3} 1-0